bitfinex-derivatives/quotes_ETHF0:USTF0_20241018
["timestamp","ask_amount","ask_price","bid_price","bid_amount"]
[1729234060642,1.37,2628.4,2628.3,1.75056]
[1729234061024,1.37,2628.4,2628.3,1.21206]
[1729234061640,1.37,2628.4,2628.3,0.80186]
[1729234062838,0.8208,2628.9,2628.7,0.3805]
[1729234062839,1.20129,2628.9,2628.7,0.3805]
[1729234063030,0.38049,2628.8,2628.7,3.2078]
[1729234063236,1.75049,2628.8,2628.7,3.2078]
[1729234064429,0.77998,2628.9,2628.7,3.2078]
[1729234064630,0.38051,2628.7,2628.5,0.38054]
[1729234064835,1.37,2628.6,2628.5,0.38054]
[1729234065135,1.7737,2628.6,2628.5,0.38054]
[1729234065330,0.3901,2629.1,2628.5,1.37]
[1729234065531,1.37,2628.8,2628.7,4.95831]
[1729234065731,1.37,2628.8,2628.7,3.58831]
[1729234066938,0.4037,2629.0,2628.7,3.2078]
[1729234067140,1.37,2628.8,2628.7,3.58831]
[1729234067942,1.37,2628.9,2628.7,4.5778]
[1729234068143,1.37,2628.9,2628.8,0.38048]
[1729234068339,0.3901,2629.1,2628.8,1.7905]
[1729234068545,0.77055,2629.1,2629.0,0.38046]
[1729234068745,2.14055,2629.1,2629.0,0.38046]
[1729234069449,1.7601,2629.1,2628.8,0.8505]
[1729234069747,1.37,2628.9,2628.8,1.23099]
[1729234070544,1.37,2628.9,2628.8,2.17099]
[1729234070743,1.75048,2628.9,2628.7,3.5883]
[1729234070948,2.1544,2628.8,2628.7,3.5883]
[1729234071741,2.53489,2628.8,2628.7,3.2078]
[1729234074355,0.38051,2628.7,2628.5,1.75053]
[1729234074540,1.37,2628.6,2628.5,1.75053]
[1729234074743,1.37,2628.6,2628.5,4.95833]
[1729234074944,1.37,2628.6,2628.5,3.2078]
[1729234075141,1.75052,2628.6,2628.5,3.2078]
[1729234075351,1.75052,2628.6,2628.1,2.1546]
[1729234075352,1.37,2628.6,2628.1,3.9924]
[1729234075557,1.75058,2628.2,2628.1,3.2078]
[1729234075749,1.37,2628.2,2628.1,3.58839]
[1729234076054,0.38062,2627.9,2627.8,3.6125]
[1729234076350,0.38062,2627.9,2627.8,4.5778]
[1729234076351,1.75062,2627.9,2627.8,4.5778]
[1729234076953,1.37,2627.9,2627.8,4.95844]
[1729234077653,1.37,2627.9,2627.8,4.5778]
[1729234077851,1.37,2627.9,2627.8,4.95844]
[1729234078049,1.37,2627.9,2627.8,4.5778]
[1729234078447,1.37,2627.9,2627.8,4.95844]
[1729234079156,1.37,2627.9,2627.8,1.75064]
[1729234079357,1.75062,2627.9,2627.8,4.95844]
[1729234079552,1.37,2627.9,2627.8,4.95844]
[1729234080555,1.37,2627.9,2627.8,3.58843]
[1729234080760,1.75062,2628.0,2627.8,4.95843]
[1729234081146,1.75062,2628.0,2627.9,0.38062]
[1729234081551,1.37,2628.0,2627.9,0.38062]
[1729234081751,1.75061,2628.0,2627.8,4.95843]
[1729234082052,1.37,2628.0,2627.9,0.38062]
[1729234082253,1.37,2628.3,2627.9,1.37]
[1729234082453,1.37,2628.2,2628.1,1.75058]
[1729234082958,1.37,2628.2,2628.1,2.14928]
[1729234083355,1.37,2628.2,2627.8,3.2078]
[1729234083551,1.75062,2627.9,2627.8,3.2078]
[1729234084258,1.75062,2627.9,2627.5,3.2078]
[1729234084259,11.1756,2627.9,2627.5,3.2078]
[1729234084452,0.38067,2627.6,2627.5,3.2078]
[1729234084654,1.75067,2627.6,2627.5,3.2078]
[1729234084850,46.35627,2627.6,2627.5,3.2078]
[1729234085152,46.35627,2627.6,2627.5,4.5778]
[1729234085153,1.37,2627.6,2627.5,4.5778]
[1729234085356,0.38064,2627.8,2627.6,0.38067]
[1729234085560,3.76354335,2628.1,2627.7,0.8133]
[1729234085749,1.37,2627.8,2627.7,1.19394]
[1729234085945,1.75064,2627.8,2627.7,1.19394]
[1729234086153,1.37,2627.8,2627.7,1.19394]
[1729234086548,1.37,2627.8,2627.7,2.1833]
[1729234086754,1.37,2627.9,2627.7,2.1833]
[1729234086956,1.37,2627.9,2627.8,3.58844]
[1729234087359,1.75062,2627.9,2627.8,3.58844]
[1729234087556,1.75062,2627.9,2627.8,0.38064]
[1729234087557,1.37,2627.9,2627.8,0.38064]
[1729234087952,1.37,2627.9,2627.5,3.2078]
[1729234087953,3.8056,2627.9,2627.5,3.2078]
[1729234088153,0.38061,2628.0,2627.9,0.38062]
[1729234088458,41.18058,2628.2,2628.0,0.38059]
[1729234088664,41.18058,2628.2,2628.1,0.38059]
[1729234088873,0.80096,2628.4,2628.2,0.38057]
[1729234089167,0.80096,2628.4,2628.0,1.7506]
[1729234089168,0.4204,2628.4,2628.0,1.7506]
[1729234089349,0.4204,2628.4,2628.0,0.3806]
[1729234089350,1.37,2628.1,2628.0,0.3806]
[1729234089552,1.37,2628.1,2628.0,0.37895565]
[1729234090661,1.37,2628.1,2628.0,1.74895565]
[1729234090859,1.37,2628.1,2628.0,1.75061]
[1729234097257,1.37,2628.1,2628.0,0.38061]
[1729234097668,0.38057,2628.3,2628.1,0.38059]
[1729234097865,43.28354335,2628.5,2627.8,3.2078]
[1729234098059,2.48354335,2628.6,2628.4,0.38055]
[1729234098266,2.48354335,2628.6,2628.5,1.58884]
[1729234098468,1.37,2628.6,2628.5,1.58884]
[1729234098765,42.17,2628.6,2628.5,1.58884]
[1729234099664,42.17,2628.6,2628.4,3.2078]
[1729234099665,0.38054,2628.5,2628.4,3.2078]
[1729234099866,1.18144,2628.5,2628.4,3.2078]
[1729234100063,8.83978335,2628.5,2628.4,3.2078]
[1729234101466,6.35624,2628.5,2628.4,3.2078]
[1729234101765,6.76014,2628.5,2628.4,3.2078]
[1729234105071,40.8,2628.6,2628.4,4.5778]
[1729234105261,41.18053,2628.6,2628.5,0.8268]
[1729234105458,41.18053,2628.6,2628.5,0.4073]
[1729234105459,42.55053,2628.6,2628.5,0.4073]
[1729234105658,45.03407335,2628.6,2628.5,0.4073]
[1729234106254,43.66407335,2628.6,2628.5,0.4073]
[1729234106460,45.03407335,2628.6,2628.5,0.4073]
[1729234107273,0.38054,2628.5,2628.4,3.2078]
[1729234107569,2.16514,2628.5,2628.4,3.2078]
[1729234108357,1.7846,2628.5,2628.2,3.6199]
[1729234108563,1.7846,2628.5,2628.2,4.00048]
[1729234108564,1.37,2628.3,2628.2,4.00048]
[1729234110574,1.75056,2628.3,2628.2,3.6199]
[1729234111672,1.37,2628.3,2628.2,3.6199]
[1729234111868,1.37,2628.3,2628.2,4.00048]
[1729234112672,2.86410335,2628.4,2628.3,0.38056]
[1729234112673,1.37,2628.4,2628.3,0.38056]
[1729234112874,2.48354335,2628.5,2628.4,0.38055]
[1729234112875,1.37,2628.5,2628.4,0.38055]
[1729234113075,1.75054,2628.5,2628.4,0.38055]
[1729234113470,1.75054,2628.5,2628.4,0.79365]
[1729234113969,1.37,2628.5,2628.4,0.79365]
[1729234114163,1.75054,2628.5,2628.4,0.79365]
[1729234114367,4.23408335,2628.5,2628.4,0.79365]
[1729234116381,4.23408335,2628.5,2628.4,0.4131]
[1729234116672,1.75054,2628.5,2628.4,0.4131]
[1729234117372,0.38055,2628.4,2628.3,0.80966]
[1729234117576,2.16085,2628.4,2628.3,0.80966]
[1729234117879,1.7803,2628.4,2628.3,0.80966]
[1729234118079,2.16085,2628.4,2628.3,0.80966]
[1729234118872,2.16085,2628.4,2628.3,0.4291]
[1729234119079,2.16086,2628.4,2628.2,4.00047]
[1729234119272,1.37,2628.3,2628.2,4.41757]
[1729234119669,4.26384335,2628.4,2628.2,4.037]
[1729234119975,4.64439335,2628.4,2628.3,0.38056]
[1729234120475,2.86409335,2628.4,2628.3,1.75056]
[1729234120778,0.38055,2628.4,2628.3,1.75056]
[1729234120966,0.38055,2628.4,2628.3,4.95836]
[1729234121879,1.37,2628.4,2628.3,3.58836]
[1729234122184,2.48354335,2628.5,2628.4,0.38055]
[1729234122376,1.37,2629.0,2628.4,5.5702]
[1729234122575,1.37,2629.2,2629.1,0.38045]
[1729234122770,1.37,2629.3,2629.2,0.38042]
[1729234123079,1.37,2629.3,2629.2,0.3973]
[1729234123281,3.86182784,2629.3,2629.2,0.77773]
[1729234123470,1.37,2629.3,2629.2,0.3973]
[1729234123782,1.37,2629.3,2629.2,0.77773]
[1729234123974,1.75042,2629.3,2629.2,0.3973]
[1729234124176,3.86182784,2629.3,2629.2,0.77773]
[1729234124373,3.8594392,2629.3,2629.2,0.77773]
[1729234124573,3.8594392,2629.3,2629.2,0.3973]
[1729234124779,3.8594392,2629.3,2629.2,0.77773]
[1729234126374,1.37,2629.3,2629.2,0.77773]
[1729234126977,1.75042,2629.3,2629.2,0.3973]
[1729234127173,1.37,2629.3,2629.0,3.58826]
[1729234127479,1.75045,2629.1,2629.0,3.2078]
[1729234127784,4.23822578,2629.1,2629.0,3.2078]
[1729234128386,1.75045,2629.1,2629.0,3.2078]
[1729234130780,1.37,2629.1,2629.0,3.58826]
[1729234131383,1.37,2629.1,2629.0,3.2078]
[1729234131583,1.75045,2629.1,2629.0,3.2078]
[1729234131779,1.37,2629.1,2629.0,3.2078]
[1729234132079,1.75045,2629.1,2629.0,3.2078]
[1729234132672,1.37,2629.1,2629.0,3.2078]
[1729234132876,1.75045,2629.1,2629.0,3.2078]
[1729234134587,1.37,2629.1,2629.0,3.58826]
[1729234134782,3.35961539,2629.2,2629.0,4.5778]
[1729234134976,1.37,2629.2,2629.1,0.38045]
[1729234135378,1.37,2629.2,2629.0,4.5778]
[1729234135579,1.37,2629.2,2629.1,0.38045]
[1729234136489,1.37,2629.2,2629.1,3.58825]
[1729234138083,1.37,2629.2,2629.1,0.38045]
[1729234138381,1.37,2629.2,2629.1,3.58825]
[1729234138781,1.37,2629.2,2629.1,4.95825]
[1729234139186,1.37,2629.2,2629.1,3.58825]
[1729234140086,0.38043,2629.3,2629.1,4.5778]
[1729234140293,3.35961539,2629.4,2629.2,2.14803]
[1729234140479,1.98961539,2629.4,2629.3,1.75042]
[1729234140681,1.37,2629.4,2629.3,1.75042]
[1729234140987,1.7504,2629.4,2629.3,1.75042]
[1729234141289,1.37,2629.4,2629.3,1.75042]
[1729234141682,3.35961539,2629.6,2629.3,1.37]
[1729234141884,0.38038,2629.6,2629.5,1.37]
[1729234142087,0.38038,2629.6,2629.2,1.2113]
[1729234142088,1.37,2629.6,2629.2,1.2113]
[1729234142282,0.38042,2629.3,2629.2,2.5813]
[1729234142481,1.37,2629.4,2629.2,2.5813]
[1729234142690,1.75041,2629.4,2629.3,1.37]
[1729234142986,0.38043,2629.2,2629.1,3.2078]
[1729234143182,2.36909271,2629.2,2629.1,3.2078]
[1729234143390,3.35866271,2629.2,2628.8,1.7804]
[1729234143584,0.38048,2628.9,2628.8,1.7804]
[1729234143787,0.38048,2628.9,2628.8,0.4104]
[1729234143996,1.75048,2628.9,2628.8,0.4104]
[1729234144986,1.75048,2628.9,2628.8,1.7804]
[1729234145491,1.75048,2628.9,2628.7,3.2078]
[1729234145492,0.38049,2628.8,2628.7,3.2078]
[1729234145684,1.75049,2628.8,2628.7,3.2078]
[1729234146493,3.73915271,2628.8,2628.7,3.2078]
[1729234147591,3.73915271,2628.8,2628.7,3.58831]
[1729234147787,1.75049,2628.8,2628.7,3.58831]
[1729234147990,1.37,2628.8,2628.7,3.58831]
[1729234148297,1.37,2628.8,2628.7,4.95831]
[1729234148594,1.37,2628.8,2628.7,4.5778]
[1729234148790,1.75049,2628.8,2628.7,4.5778]
[1729234148990,3.73915271,2628.8,2628.7,4.5778]
[1729234149886,3.35866271,2628.8,2628.7,4.95831]
[1729234150090,3.35866271,2628.8,2628.7,4.5778]
[1729234150091,1.37,2628.8,2628.7,4.5778]
[1729234150291,1.75049,2628.8,2628.7,4.5778]
[1729234150499,1.37,2628.8,2628.7,4.95831]
[1729234150698,1.75049,2628.8,2628.7,4.5778]
[1729234152408,3.73915271,2628.8,2628.7,3.2078]
[1729234153492,17.29057578,2628.8,2628.2,3.6278]
[1729234153693,17.29057578,2628.8,2628.2,2.56948]
[1729234153694,0.38056,2628.4,2628.2,2.56948]
[1729234153883,1.37,2628.3,2628.2,2.56948]
[1729234154090,1.75056,2628.3,2628.2,2.1889]
[1729234154294,2.15226,2628.3,2628.2,1.19948]
[1729234154488,2.15226,2628.3,2628.2,2.1889]
[1729234154694,1.7717,2628.3,2628.2,2.56948]
[1729234154894,1.7717,2628.3,2627.6,10.47065]
[1729234154895,0.38058,2628.2,2627.5,0.38067]
[1729234155097,0.38058,2628.2,2627.7,1.37]
[1729234155098,1.37,2627.8,2627.7,1.37]
[1729234155293,2.48769367,2628.1,2627.7,7.37]
[1729234155294,1.99015494,2628.1,2627.7,7.37]
[1729234155603,1.37,2628.0,2627.9,1.37]
[1729234156001,1.37,2628.0,2627.9,1.7592]
[1729234156507,1.99015494,2628.2,2627.9,2.13982]
[1729234156694,6.56795494,2628.4,2628.1,1.75059]
[1729234156891,1.37,2628.3,2628.1,1.75059]
[1729234157195,1.37,2628.3,2628.2,0.38058]
[1729234157393,1.37,2628.4,2628.2,1.37]
[1729234157696,1.37,2628.3,2628.0,0.4205]
[1729234157893,1.37,2628.1,2628.0,0.4205]
[1729234158092,1.75059,2628.1,2628.0,0.4205]
[1729234162308,0.38061,2628.0,2627.9,0.7869]
[1729234162599,0.38061,2628.0,2627.6,1.37]
[1729234162600,1.37,2628.0,2627.6,0.3899]
[1729234162803,0.38065,2627.7,2627.6,2.1663]
[1729234163207,1.75064,2627.8,2627.6,2.1663]
[1729234163603,1.37,2627.8,2627.6,2.54696]
[1729234163808,1.75064,2627.8,2627.6,2.1663]
[1729234164003,1.37,2627.8,2627.6,2.1663]
[1729234164306,1.75065,2627.8,2627.6,2.1663]
[1729234165205,1.75065,2627.8,2627.6,2.54696]
[1729234166008,1.75065,2627.8,2627.6,2.1663]
[1729234166413,1.75065,2627.8,2627.7,1.37]
[1729234166909,1.37,2627.8,2627.7,1.37]
[1729234167295,1.75063,2627.9,2627.7,1.75065]
[1729234167505,1.75063,2627.9,2627.7,1.37]
[1729234168313,1.37,2627.8,2627.6,2.54695]
[1729234169016,0.392,2628.1,2627.7,1.37]
[1729234169216,0.392,2628.1,2627.9,0.38062]
[1729234169217,1.37,2628.0,2627.9,0.38062]
[1729234169418,0.7726,2628.1,2628.0,0.3948]
[1729234169620,1.37,2628.1,2628.0,0.3948]
[1729234170006,1.37,2628.1,2628.0,0.77541]
[1729234170816,0.38059,2628.2,2628.0,0.77541]
[1729234171023,0.38059,2628.2,2628.1,0.4095]
[1729234171220,1.75059,2628.2,2628.1,0.4095]
[1729234173322,1.37,2628.2,2628.1,0.4095]
[1729234173624,0.38057,2628.3,2628.1,0.79009]
[1729234173817,0.38057,2628.3,2628.1,2.16009]
[1729234173818,1.37,2628.2,2628.1,2.16009]
[1729234174420,1.37,2628.2,2628.1,0.79009]
[1729234176322,1.48977149,2628.4,2628.1,2.16009]
[1729234176527,1.37,2628.2,2628.1,2.16009]
[1729234177025,1.37,2628.2,2628.1,0.79009]
[1729234177422,2.74,2628.2,2628.1,0.4095]
[1729234177617,2.74,2628.2,2626.7,0.19041749]
[1729234177618,0.38064,2627.8,2627.7,0.4045]
[1729234177819,0.38064,2627.8,2627.7,0.8177]
[1729234177820,1.75064,2627.8,2627.7,0.8177]
[1729234178815,1.48977149,2628.1,2627.7,2.1877]
[1729234179020,1.37,2627.9,2627.8,1.75064]
[1729234179223,1.48977149,2628.2,2627.8,1.37]
[1729234179421,1.37,2628.2,2628.1,1.37]
[1729234179621,1.37,2628.1,2628.0,0.38061]
[1729234182926,1.37,2628.1,2627.9,0.4187]
[1729234182927,1.75059,2628.1,2627.9,0.79931]
[1729234183132,1.37,2628.0,2627.9,0.79931]
[1729234184128,1.75061,2628.0,2627.9,0.4187]
[1729234184330,1.37,2628.0,2627.9,0.79932]
[1729234184521,1.75061,2628.0,2627.9,0.4187]
[1729234184721,1.37,2628.0,2627.9,0.79932]
[1729234185133,1.37,2628.0,2627.7,2.1877]
[1729234185134,3.26237149,2628.0,2627.7,2.1877]
[1729234185432,1.37,2627.9,2627.8,0.38064]
[1729234186035,1.75062,2627.9,2627.7,2.56834]
[1729234186441,1.37,2627.9,2627.8,0.38064]
[1729234187335,3.24039149,2627.9,2627.7,2.56834]
[1729234187735,1.48977149,2627.9,2627.7,2.1877]
[1729234188038,1.37,2627.9,2627.8,1.75064]
[1729234188424,2.85977149,2627.9,2627.8,1.75064]
[1729234188838,1.37,2627.9,2627.8,1.75064]
[1729234189436,2.85977149,2627.9,2627.8,0.38064]
[1729234190334,1.37,2627.9,2627.8,0.38064]
[1729234190533,2.86416317,2627.9,2627.8,0.38064]
[1729234191246,2.86421165,2627.9,2627.8,0.38064]
[1729234191740,2.86437127,2627.9,2627.8,0.38064]
[1729234194335,1.37,2627.9,2627.8,0.38064]
[1729234195344,3.76275494,2628.0,2627.7,2.1877]
[1729234195548,1.99015494,2628.0,2627.9,0.38062]
[1729234195733,3.36015494,2628.0,2627.9,0.38062]
[1729234196138,3.36015494,2628.1,2628.0,0.38061]
[1729234196835,3.36015494,2628.1,2628.0,1.75061]
[1729234197039,3.36015494,2628.1,2628.0,0.38061]
[1729234197443,3.36015494,2628.1,2628.0,0.79801]
[1729234198338,1.37,2628.1,2628.0,0.79801]
[1729234198845,3.85769367,2628.1,2628.0,0.79801]
[1729234199052,2.48769367,2628.1,2628.0,2.16801]
[1729234199254,1.37,2628.1,2628.0,2.16801]
[1729234199553,3.85769367,2628.1,2628.0,2.16801]
[1729234201949,3.85769367,2628.1,2628.0,0.79801]
[1729234202848,3.85769367,2628.1,2628.0,2.16801]
[1729234203247,2.48769367,2628.1,2628.0,2.16801]
[1729234203459,4.36019341,2628.4,2628.0,2.16801]
[1729234203460,2.49539269,2628.2,2628.1,0.38059]
[1729234203756,2.49539269,2628.2,2628.1,2.17989]
[1729234203956,1.37,2628.2,2628.1,0.80989]
[1729234204147,3.86539269,2628.2,2628.1,0.80989]
[1729234204853,2.49539269,2628.2,2628.1,2.17989]
[1729234205046,3.86539269,2628.3,2628.1,1.7993]
[1729234205251,3.86539269,2628.3,2628.2,0.38058]
[1729234205450,2.49539269,2628.3,2628.2,1.75058]
[1729234206057,3.86539269,2628.3,2628.2,1.75058]
[1729234206856,1.37,2628.3,2628.2,1.75058]
[1729234207458,3.36551843,2628.3,2628.2,1.75058]
[1729234207851,3.36551843,2628.3,2628.2,8.76318]
[1729234207852,1.99551843,2628.3,2628.2,8.76318]
[1729234208047,1.49655214,2628.3,2628.2,14.76318]
[1729234208747,1.49655214,2628.3,2628.2,8.76318]
[1729234209058,1.49655214,2628.3,2628.2,4.95838]
[1729234209645,1.49655214,2628.3,2628.2,14.76318]
[1729234209849,1.49655214,2628.3,2628.2,15.17148]
[1729234210745,1.49655214,2628.3,2628.2,9.17148]
[1729234211151,1.49655214,2628.4,2628.3,0.38056]
[1729234211348,3.36551843,2628.5,2628.4,0.38055]
[1729234211749,3.36440387,2628.5,2628.3,1.75055]
[1729234211957,3.36440387,2628.5,2628.4,0.38055]
[1729234212466,3.36440387,2628.5,2628.3,1.75055]
[1729234212657,3.77990387,2628.4,2628.3,0.38056]
[1729234213349,2.40990387,2628.4,2628.3,1.75056]
[1729234216368,2.40990387,2628.4,2628.3,1.37]
[1729234216663,2.40990387,2628.4,2628.3,1.75056]
[1729234218064,1.99440387,2628.5,2628.3,1.37]
[1729234218254,2.42100387,2628.5,2628.4,0.38055]
[1729234219265,2.42100387,2628.5,2628.3,1.37]
[1729234219470,4.17155387,2628.5,2628.3,0.38055]
[1729234219660,3.79100387,2628.5,2628.4,0.38055]
[1729234219856,1.7966,2628.5,2628.4,0.38055]
[1729234220059,1.7966,2628.5,2628.3,0.38055]
[1729234220265,1.99373648,2628.4,2628.3,0.38055]
[1729234220461,1.99373648,2628.4,2628.3,0.38056]
[1729234221762,1.7966,2628.5,2628.2,4.9861]
[1729234221763,3.79033648,2628.5,2628.2,4.9861]
[1729234221964,3.79033648,2628.5,2628.4,0.38055]
[1729234226558,2.42033648,2628.5,2628.4,0.38055]
[1729234226757,2.42033648,2628.5,2628.4,0.80115]
[1729234229470,1.99373648,2628.6,2628.4,1.7906]
[1729234229770,1.99373648,2628.7,2628.5,2.14914]
[1729234229967,1.49475331,2628.6,2628.5,3.98694]
[1729234230171,1.49475331,2628.7,2628.6,0.78762]
[1729234230371,1.49475331,2628.7,2628.6,2.15762]
[1729234233369,1.49430356,2628.7,2628.6,2.15762]
[1729234233778,1.49430356,2628.8,2628.6,1.7771]
[1729234234073,1.99373648,2628.9,2628.7,1.37]
[1729234234272,1.49417718,2628.8,2628.7,0.38051]
[1729234234575,1.49417718,2628.8,2628.7,1.75051]
[1729234236172,1.49417718,2628.8,2628.7,14.76231]
[1729234236366,1.49417718,2628.9,2628.8,0.38049]
[1729234236674,1.49417718,2629.0,2628.9,0.38048]
[1729234236869,1.99373648,2629.1,2628.9,1.7979]
[1729234237070,1.99373648,2629.1,2629.0,1.75046]
[1729234237269,1.37,2629.3,2629.1,0.38044]
[1729234237572,1.37,2629.3,2629.2,1.75043]
[1729234238071,3.85975124,2629.3,2629.2,1.75043]
[1729234238372,1.37,2629.3,2629.2,1.75043]
[1729234238574,3.85975124,2629.3,2629.2,1.75043]
[1729234239171,1.37,2629.3,2629.2,1.75043]
[1729234243568,4.06376124,2629.4,2629.2,1.37]
[1729234243569,1.99105475,2629.4,2629.2,1.37]
[1729234243779,2.48975124,2629.5,2629.4,0.3804]
[1729234243780,1.99105475,2629.5,2629.4,0.3804]
[1729234244078,2.48975124,2629.6,2629.5,0.38039]
[1729234244079,1.99105475,2629.6,2629.5,0.38039]
[1729234244266,5.61175475,2629.7,2629.6,0.38038]
[1729234244467,5.61175475,2629.7,2629.6,1.75038]
[1729234244773,3.6207,2629.7,2629.6,1.75038]
[1729234245572,1.90533351,2629.7,2629.6,1.75038]
[1729234245879,1.49243351,2629.7,2629.6,1.75038]
[1729234246071,1.49243351,2629.8,2629.6,1.37]
[1729234246272,1.49243351,2629.8,2629.7,0.426]
[1729234246473,1.87214722,2629.8,2629.7,0.426]
[1729234246777,1.75035,2629.8,2629.7,1.37]
[1729234247373,0.38038,2629.6,2629.4,0.426]
[1729234247578,1.781,2629.5,2629.4,2.357]
[1729234247773,2.2079,2629.5,2629.4,2.357]
[1729234247974,3.69933633,2629.5,2629.4,2.357]
[1729234248176,2.2079,2629.5,2629.4,1.37]
[1729234248378,4.12403633,2629.5,2629.4,1.37]
[1729234248981,1.49143633,2629.6,2629.4,1.37]
[1729234249283,1.91673633,2629.7,2629.6,0.38038]
[1729234249584,1.91673633,2629.7,2629.6,1.75038]
[1729234250171,1.91673633,2629.7,2629.6,2.15658]
[1729234250375,0.4253,2629.7,2629.6,2.15658]
[1729234250870,1.91645703,2629.7,2629.6,2.15658]
[1729234254771,0.4253,2629.7,2629.6,2.15658]
[1729234255177,1.49115703,2629.8,2629.6,10.1564]
[1729234255374,1.49115703,2630.1,2630.0,0.38032]
[1729234255582,1.49115703,2630.2,2630.0,1.75032]
[1729234255775,1.49115703,2630.2,2630.1,1.37]
[1729234256478,2.65793703,2630.3,2630.1,1.7503]
[1729234256682,2.27765703,2630.3,2630.2,1.37]
[1729234256878,2.27765703,2630.3,2630.2,1.75029]
[1729234257079,2.27765703,2630.3,2630.2,1.37]
[1729234257284,2.27765703,2630.3,2630.2,1.75029]
[1729234257885,1.88935703,2630.3,2630.2,1.75029]
[1729234258289,0.3982,2630.3,2630.2,1.75029]
[1729234260191,1.39062097,2630.3,2630.2,1.75029]
[1729234261789,1.39062097,2630.3,2629.9,4.0395]
[1729234261984,0.38034,2629.9,2629.7,0.38035]
[1729234262194,0.38034,2629.9,2629.4,0.983]
[1729234262195,1.1826,2629.8,2629.4,0.983]
[1729234262490,3.92537097,2629.8,2629.7,1.37]
[1729234262678,4.42410703,2629.8,2629.7,1.37]
[1729234263691,2.93295,2629.8,2629.7,1.75036]
[1729234263891,2.93295,2629.8,2629.7,1.37]
[1729234263892,3.92556536,2629.8,2629.7,1.37]
[1729234264398,2.93295,2629.8,2629.7,1.37]
[1729234264589,3.92563945,2629.8,2629.7,1.37]
[1729234264786,4.42410703,2629.8,2629.7,1.37]
[1729234265093,0.3804,2629.5,2628.9,0.38048]
[1729234265296,3.15394961,2629.4,2629.3,1.37]
[1729234267290,2.77353961,2629.4,2629.3,1.37]
[1729234267585,3.15393961,2629.4,2629.3,1.37]
[1729234267789,3.65035942,2629.4,2629.3,1.37]
[1729234268192,3.26995942,2629.4,2629.3,1.37]
[1729234272110,1.7807,2629.4,2629.3,1.37]
[1729234273703,1.7807,2629.4,2629.3,1.75042]
[1729234274111,3.76890937,2629.4,2629.3,1.37]
[1729234274605,3.76890937,2629.4,2629.3,1.75042]
[1729234274801,3.76890937,2629.4,2629.3,1.37]
[1729234275001,3.76890937,2629.4,2629.3,1.75042]
[1729234278615,2.39890937,2629.4,2629.3,1.75042]
[1729234278815,1.98820937,2629.5,2629.3,1.37]
[1729234279015,1.98820937,2629.5,2629.4,1.7504]
[1729234281213,2.48526171,2629.6,2629.5,0.38039]
[1729234281615,2.48526171,2629.6,2629.5,0.79329]
[1729234282117,4.23563171,2629.7,2629.5,1.7829]
[1729234282317,4.23563171,2629.7,2629.6,0.38038]
[1729234282516,1.75037,2629.7,2629.6,0.38038]
[1729234282707,3.8592295,2629.7,2629.5,0.4129]
[1729234283018,3.8592295,2629.6,2629.5,0.79329]
[1729234283214,4.2396095,2629.6,2629.5,2.16329]
[1729234283724,3.8592295,2629.6,2629.5,2.16329]
[1729234283920,3.8592295,2629.7,2629.5,1.7829]
[1729234284124,5.6970295,2629.8,2629.7,0.38036]
[1729234284419,5.6970295,2629.8,2629.7,1.75036]
[1729234284613,6.0773795,2629.8,2629.7,1.75036]
[1729234285020,3.58815,2629.8,2629.7,1.75036]
[1729234285322,6.0773795,2629.8,2629.7,1.75036]
[1729234285816,3.2078,2629.8,2629.7,1.75036]
[1729234286012,3.2078,2629.8,2629.6,0.814]
[1729234286319,3.2078,2629.8,2629.7,3.12036]
[1729234286320,5.1992605,2629.8,2629.7,3.12036]
[1729234286518,4.70134803,2629.8,2629.7,1.75036]
[1729234286723,6.5692605,2629.8,2629.7,1.75036]
[1729234286911,5.1992605,2629.8,2629.7,1.75036]
[1729234288218,1.9914605,2629.8,2629.7,1.37]
[1729234288411,3.3614605,2629.8,2629.7,1.37]
[1729234288619,1.9914605,2629.8,2629.7,1.37]
[1729234288813,1.9914605,2629.8,2629.7,1.75036]
[1729234289325,2.4892295,2629.8,2629.7,1.75036]
[1729234289918,3.2629695,2629.9,2629.7,1.75036]
[1729234290109,3.2629695,2629.9,2629.8,1.37]
[1729234290619,2.8826295,2629.9,2629.8,1.37]
[1729234291015,2.4892295,2629.9,2629.8,1.75035]
[1729234291215,2.4892295,2629.9,2629.8,1.37]
[1729234291422,2.4892295,2629.9,2629.8,1.75035]
[1729234292918,2.4892295,2629.9,2629.8,1.37]
[1729234293215,4.2395595,2629.9,2629.8,1.37]
[1729234293412,4.2395595,2629.9,2629.6,0.814]
[1729234293413,0.38036,2629.7,2629.6,1.7817]
[1729234293617,4.24003016,2629.7,2629.6,1.37]
[1729234293820,1.75036,2629.7,2629.6,1.37]
[1729234294631,1.75036,2629.7,2629.6,0.87]
[1729234295820,2.96916,2629.7,2629.6,0.87]
[1729234296536,3.70856177,2629.7,2629.6,0.87]
[1729234296828,1.16946,2629.7,2629.6,0.87]
[1729234297126,1.99169105,2629.7,2629.6,1.67428]
[1729234301629,1.99169105,2629.7,2629.6,1.2939]
[1729234302128,4.24011177,2629.8,2629.6,1.67428]
[1729234302536,0.38038,2629.6,2629.3,4.0658]
[1729234302719,1.99200199,2629.4,2629.3,5.81622]
[1729234303633,4.25156177,2629.5,2629.3,5.4358]